bitfinex/quotes_ETHUSD_20260202
["timestamp","ask_amount","ask_price","bid_price","bid_amount"]
[1770051577358,1.91149799,2362.7,2362.0,0.001]
[1770051577542,1.95816315,2362.6,2362.0,0.001]
[1770051577748,0.38696611,2362.5,2362.0,0.001]
[1770051580060,13.74872646,2362.7,2362.0,0.001]
[1770051580230,0.89973057,2362.6,2362.0,0.001]
[1770051580429,0.89973057,2362.5,2362.0,0.001]
[1770051580638,0.89973057,2362.4,2362.0,0.001]
[1770051580850,14.87344725,2362.7,2362.0,0.001]
[1770051581041,2.95941679,2362.6,2362.0,0.001]
[1770051581374,0.90016465,2362.5,2362.0,0.001]
[1770051581552,1.05824585,2362.4,2362.0,0.001]
[1770051582089,2.05925214,2362.6,2362.0,0.001]
[1770051582378,0.9001796,2362.5,2362.0,0.001]
[1770051582573,1.05923109,2362.7,2362.0,0.001]
[1770051582767,0.90014162,2362.6,2362.0,0.001]
[1770051582972,0.90014162,2362.5,2362.0,0.001]
[1770051583172,1.05923109,2362.7,2362.0,0.001]
[1770051583372,0.90011168,2362.6,2362.0,0.001]
[1770051583571,1.05824585,2362.4,2362.0,0.001]
[1770051584146,1.05821959,2362.5,2362.0,0.001]
[1770051584339,0.9001113,2362.4,2362.0,0.001]
[1770051584539,1.05821959,2362.5,2362.0,0.001]
[1770051584744,1.42886477,2362.4,2362.0,0.001]
[1770051584943,0.52909628,2362.4,2362.0,0.001]
[1770051585574,1.05829064,2362.3,2362.0,0.001]
[1770051585753,1.05829064,2362.3,2361.8,0.001]
[1770051585960,0.89991137,2362.2,2361.8,0.001]
[1770051586175,1.05829064,2362.3,2361.8,0.001]
[1770051586381,1.48182331,2362.2,2361.8,0.001]
[1770051586678,0.58203789,2362.2,2361.8,0.001]
[1770051587474,0.58203789,2362.2,2361.5,0.001]
[1770051588166,1.64040473,2362.2,2361.5,0.001]
[1770051588353,0.89951422,2362.1,2361.5,0.001]
[1770051588557,0.2539919,2362.0,2361.5,0.001]
[1770051590665,0.53019628,2362.4,2361.5,12.28288712]
[1770051590976,0.0011,2362.4,2361.5,12.28288712]
[1770051591182,1.05935702,2362.4,2361.5,0.001]
[1770051591485,0.89871482,2362.3,2361.5,0.001]
[1770051591652,0.89871482,2362.2,2361.5,0.001]
[1770051591852,13.72830612,2362.4,2361.5,0.001]
[1770051592049,2.89559307,2362.3,2361.5,0.001]
[1770051592257,1.05838025,2362.1,2361.5,0.001]
[1770051594473,3.05572375,2362.3,2361.5,0.001]
[1770051594685,1.05832272,2362.3,2361.5,12.28288712]
[1770051594888,4.23418538,2362.4,2361.5,12.28288712]
[1770051594889,0.0011,2362.4,2361.5,12.28288712]
[1770051595189,1.05934874,2362.4,2361.5,12.28288712]
[1770051595389,0.89950864,2362.3,2361.5,0.001]
[1770051595562,1.05934874,2362.4,2361.5,0.001]
[1770051595889,1.42875923,2362.3,2361.5,0.001]
[1770051596093,0.52923049,2362.3,2361.5,0.001]
[1770051596662,1.58755453,2362.3,2361.5,0.001]
[1770051596878,1.58752398,2362.3,2361.5,0.001]
[1770051597193,0.0011,2362.4,2361.5,12.28288712]
[1770051597383,1.05934949,2362.4,2361.5,12.28288712]
[1770051597760,0.0011,2362.4,2361.5,12.28288712]
[1770051598300,1.05935083,2362.4,2361.5,12.28288712]
[1770051598519,1.05935083,2362.4,2361.5,0.001]
[1770051598799,1.58755399,2362.3,2361.5,0.001]
[1770051598960,0.90040587,2362.2,2361.5,0.001]
[1770051600300,13.56935497,2362.2,2361.5,0.001]
[1770051600457,0.90040587,2362.1,2361.5,0.001]
[1770051600661,1.05842506,2362.0,2361.5,0.001]
[1770051600891,1.5199579,2361.9,2361.3,0.001]
[1770051601088,0.90061038,2361.8,2361.3,0.001]
[1770051601287,13.28820222,2361.9,2361.3,0.001]
[1770051601460,0.90038869,2361.8,2361.3,0.001]
[1770051601670,13.28820222,2361.9,2361.3,0.001]
[1770051601872,2.42406536,2361.8,2361.7,0.001]
[1770051602194,12.6689491,2361.7,2360.8,0.001]
[1770051602394,12.6689491,2361.4,2360.5,0.001]
[1770051602702,12.6689491,2361.4,2360.3,0.001]
[1770051602703,1.05887335,2361.0,2360.3,0.001]
[1770051602903,0.90060263,2360.9,2360.3,0.001]
[1770051603065,0.90060263,2360.8,2360.3,0.001]
[1770051603392,13.72782245,2361.0,2360.3,0.001]
[1770051603703,0.8976096,2360.9,2360.3,0.001]
[1770051603870,2.36015281,2360.8,2360.3,0.001]
[1770051604203,14.13149231,2360.8,2360.3,0.001]
[1770051604380,12.6689491,2360.6,2359.5,1.05953872]
[1770051604573,0.888,2360.5,2359.5,4.23815773]
[1770051604887,1.05914251,2360.4,2359.5,4.23815773]
[1770051605088,1.67749556,2360.4,2359.6,1.84675914]
[1770051605284,0.61835305,2360.4,2359.6,14.12864626]
[1770051605485,2.52152537,2360.8,2359.6,14.12864626]
[1770051605793,4.23554193,2361.0,2359.6,14.12864626]
[1770051606387,12.6689491,2360.9,2359.6,1.84675914]
[1770051606586,12.6689491,2360.9,2359.5,1.05954651]
[1770051607016,1.05896306,2360.8,2359.5,1.05954651]
[1770051607498,4.23553124,2361.0,2359.5,13.34143363]
[1770051608471,1.05882829,2361.2,2359.5,13.34143363]
[1770051608800,1.05882829,2361.2,2359.5,13.36685951]
[1770051608998,0.5293797,2361.1,2359.7,13.34134383]
[1770051609209,4.23513467,2361.4,2359.7,13.34134383]
[1770051609410,1.05869399,2361.4,2359.8,12.307313]
[1770051609774,13.72764309,2361.4,2359.8,12.28188712]
[1770051610822,1.05869399,2361.4,2359.8,12.28188712]
[1770051611124,0.0011,2362.1,2360.3,12.28188712]
[1770051611426,0.0011,2362.1,2360.2,0.1024]
[1770051611427,0.0011,2362.1,2360.9,12.28188712]
[1770051611611,0.0011,2362.1,2361.1,12.28188712]
[1770051611789,0.0011,2362.3,2361.3,12.28188712]
[1770051611986,0.0011,2362.4,2361.5,12.28188712]
[1770051612206,0.0011,2362.4,2361.6,0.888]
[1770051612408,0.0011,2362.6,2361.6,13.16988712]
[1770051612636,0.0011,2362.6,2361.7,1.31698871]
[1770051613184,0.0011,2362.6,2361.8,1.05851469]
[1770051614922,0.0011,2362.6,2361.7,2.37551342]
[1770051615216,0.0011,2362.6,2361.4,4.23405876]
[1770051615426,0.0011,2362.4,2361.4,4.23405876]
[1770051615599,0.0011,2362.4,2361.5,12.28188712]
[1770051617323,0.0011,2362.4,2361.6,13.34049145]
[1770051618122,0.0011,2362.4,2361.6,1.05860433]
[1770051618814,0.0011,2362.4,2361.5,1.05864492]
[1770051619117,0.0011,2362.4,2361.5,1.58796908]
[1770051619626,0.0011,2362.4,2361.5,13.89528208]
[1770051619800,0.0011,2362.6,2361.7,12.28188712]
[1770051620125,0.0011,2362.6,2361.6,0.02542588]
[1770051620126,0.0011,2362.6,2361.8,0.888]
[1770051621525,0.0011,2362.6,2361.9,1.05846987]
[1770051621730,0.0011,2362.6,2362.0,0.61803494]
[1770051621900,0.0011,2362.6,2361.8,1.9464798]
[1770051622830,0.0011,2362.6,2361.8,14.94373143]
[1770051623130,0.0011,2362.6,2361.8,1.9464798]
[1770051624114,0.0011,2362.6,2361.8,0.888]
[1770051624314,0.0011,2362.6,2361.6,1.058575]
[1770051624502,1.21835612,2362.6,2361.8,1.05850453]
[1770051624999,0.0011,2362.6,2361.8,1.05850453]
[1770051625511,0.0011,2362.6,2361.4,1.05869399]
[1770051626122,0.0011,2362.6,2361.4,14.05594562]
[1770051627029,0.0011,2362.6,2361.6,0.001]
[1770051627223,0.0011,2362.4,2361.6,0.001]
[1770051627728,12.17146121,2362.4,2361.6,0.001]
[1770051627930,1.21714612,2362.3,2361.6,0.001]
[1770051628818,13.38750733,2362.3,2361.6,0.001]
[1770051629936,1.05833545,2362.2,2361.6,0.001]
[1770051630141,13.22869666,2362.2,2361.4,0.001]
[1770051630354,14.03827967,2362.1,2360.8,0.888]
[1770051630572,14.03827967,2362.1,2360.6,1.05901504]
[1770051630857,14.03827967,2362.1,2360.7,1.05899401]
[1770051631422,14.03827967,2362.1,2360.9,1.058913]
[1770051631626,1.50966151,2362.0,2360.9,1.058913]
[1770051631851,1.05833545,2362.2,2360.9,1.058913]
[1770051632061,1.05833545,2362.2,2360.9,12.99725163]
[1770051632231,1.05936076,2362.4,2361.1,13.02267751]
[1770051632564,0.0011,2362.4,2361.5,12.99725163]
[1770051632864,0.0011,2362.6,2361.7,13.02267751]
[1770051633071,0.0011,2362.6,2361.8,1.30226775]
[1770051633453,0.0011,2362.6,2361.8,14.29951938]
[1770051634043,0.0011,2362.6,2361.9,1.05846987]
[1770051635768,0.0011,2362.7,2361.9,14.0557215]
[1770051635985,0.0011,2363.1,2362.3,12.99725163]
[1770051636271,0.0011,2364.0,2362.8,13.02267751]
[1770051636473,0.0011,2364.0,2362.4,3.2485136]
[1770051636474,0.0011,2364.0,2362.4,16.24576523]
[1770051636675,0.0011,2364.0,2362.9,12.99725163]
[1770051636980,0.0011,2364.0,2363.0,0.888]
[1770051637590,0.0011,2364.0,2362.5,0.02542588]
[1770051637876,12.17146121,2364.0,2362.8,0.888]
[1770051638045,1.05757434,2363.9,2362.9,1.05802192]
[1770051638253,0.0011,2364.0,2362.9,1.05802192]
[1770051638440,0.0011,2364.0,2362.9,14.05527355]
[1770051638636,0.0011,2364.0,2363.0,14.91733034]
[1770051639458,0.0011,2363.8,2363.0,14.91733034]
[1770051640179,1.05721656,2364.7,2363.3,1.05784284]
[1770051640336,1.05712715,2364.9,2363.4,13.91067751]
[1770051640951,0.0011,2365.0,2363.8,12.99725163]
[1770051641155,1.05820582,2365.0,2363.9,2.31049724]
[1770051641384,1.05820582,2365.0,2363.5,12.99725163]
[1770051641385,1.05818348,2365.0,2364.0,0.887]
[1770051641683,0.0011,2365.0,2364.0,0.887]
[1770051642084,0.0011,2365.0,2364.1,1.05748487]
[1770051643790,0.0011,2365.0,2364.1,14.96716238]
[1770051643991,1.05681433,2365.6,2364.2,14.91696182]
[1770051644288,13.22704154,2365.9,2364.3,1.05739542]
[1770051645291,13.22704154,2365.9,2364.3,14.05464705]
[1770051645464,1.05668033,2365.9,2364.3,14.05464705]
[1770051645665,13.22704154,2365.9,2364.3,1.05739542]
[1770051645877,13.22704154,2365.9,2364.1,5.11658169]
[1770051645878,12.17036121,2365.5,2364.1,0.887]
[1770051646082,12.17036121,2365.5,2364.1,1.94448339]
[1770051646292,12.17036121,2365.3,2364.1,0.887]
[1770051646468,12.17036121,2365.3,2364.1,1.94447797]
[1770051646673,1.32272649,2365.2,2364.1,1.94447797]
[1770051647807,1.05689194,2365.5,2364.1,1.94447797]
[1770051648010,13.22725315,2365.5,2364.1,1.94447797]
[1770051648212,4.22714527,2365.7,2364.1,1.96990385]
[1770051648512,12.17036121,2365.6,2364.1,1.94447797]
[1770051649088,12.17036121,2365.6,2364.1,1.96990385]
[1770051649314,4.22714527,2365.7,2364.1,1.96990385]
[1770051649315,1.63975065,2365.5,2364.2,0.61998434]
[1770051649474,2.83811184,2365.8,2364.7,0.02542588]
[1770051649805,2.8381128,2365.8,2364.4,12.54492831]
[1770051650595,2.8381128,2365.8,2364.5,1.05730598]
[1770051651176,1.78138475,2365.8,2364.5,1.05730598]
[1770051651371,2.83811513,2365.8,2364.5,1.05730598]
[1770051651599,0.70648396,2365.7,2364.6,1.78314582]
[1770051651802,2.83811513,2365.8,2364.6,1.78314582]
[1770051651996,0.0011,2365.4,2364.6,1.78314582]
[1770051652196,0.0011,2365.4,2364.7,0.887]
[1770051652578,0.0011,2365.4,2364.8,1.05717185]
[1770051653508,0.0011,2365.4,2363.2,5.31890966]
[1770051653509,0.0011,2365.4,2364.5,1.05726958]
[1770051653684,0.0011,2365.4,2364.6,1.05725004]
[1770051653886,0.0011,2365.4,2364.5,1.05727858]
[1770051654098,1.26703345,2365.4,2364.6,1.0572596]
[1770051654289,1.26703345,2365.4,2364.7,1.0572147]
[1770051654484,1.26703345,2365.4,2364.3,1.05739542]
[1770051654708,0.0011,2365.4,2364.3,13.13442371]
[1770051656030,0.0011,2365.4,2364.3,13.10899783]
[1770051656399,0.0011,2365.4,2364.3,1.05739542]
[1770051656601,0.0011,2365.4,2363.9,16.2811841]
[1770051656602,13.71514034,2365.4,2363.9,4.22958169]
[1770051656845,12.65713454,2365.2,2363.9,1.05757434]
[1770051657202,12.65713454,2365.0,2363.8,1.05758125]
[1770051657736,2.68127551,2365.3,2363.8,1.05758125]
[1770051658041,12.65713454,2365.2,2363.8,1.05758125]
[1770051658336,1.53384101,2365.1,2363.9,0.52881864]
[1770051658554,1.9450058,2365.4,2364.0,1.05752961]
[1770051658842,1.0580058,2365.4,2364.0,1.05752961]
[1770051659006,12.65713454,2365.3,2364.0,1.05752961]
[1770051659606,1.0580058,2365.4,2364.0,1.05752961]
[1770051659805,1.0580042,2365.4,2364.0,13.10913202]
[1770051660006,0.61843943,2365.4,2364.1,13.8638352]
[1770051660305,0.61843943,2365.4,2364.4,22.1593232]
[1770051660306,0.0011,2365.4,2364.4,22.1593232]
[1770051660509,0.0011,2365.4,2364.5,12.05160241]
[1770051660704,0.0011,2365.4,2364.6,1.05726127]
[1770051660919,0.0011,2365.6,2364.7,12.07702829]
[1770051661124,0.36024491,2366.0,2365.0,12.07702829]
[1770051661319,0.36024491,2366.0,2365.1,13.25930524]
[1770051661554,0.1144712,2366.4,2365.3,12.07702829]
[1770051661858,5.72301668,2367.4,2365.3,12.07702829]
[1770051661859,0.34774012,2367.7,2366.3,0.02542588]
[1770051662028,0.34774012,2367.7,2366.4,23.02089732]
[1770051662222,0.34774012,2367.7,2366.3,0.02542588]
[1770051662223,14.06075644,2367.7,2366.5,2.30463232]
[1770051662424,12.65713454,2367.5,2365.7,0.887]
[1770051662636,1.05601081,2367.4,2365.8,1.05672499]
[1770051662966,12.65713454,2367.2,2365.8,1.05672499]
[1770051663259,0.887,2367.3,2365.8,1.05672499]
[1770051663561,0.887,2367.3,2365.9,10.08229491]
[1770051663724,0.887,2367.3,2365.8,14.17350617]
[1770051663924,13.54413454,2367.3,2365.8,2.09647788]
[1770051664560,0.887,2367.3,2365.8,14.17350617]
[1770051664725,0.0011,2367.1,2365.8,14.17350617]
[1770051665065,0.0011,2367.1,2365.9,1.92874101]
[1770051665266,0.0011,2367.1,2366.1,12.07702829]
[1770051665437,0.0011,2367.3,2366.4,12.07702829]
[1770051665640,0.0011,2367.3,2366.5,0.886]
[1770051666730,1.05569866,2368.1,2366.6,1.05636778]
[1770051666934,1.79355108,2368.0,2366.7,0.61678389]
[1770051667420,1.79355108,2368.0,2366.6,1.05636778]
[1770051668361,12.65713454,2367.9,2366.6,1.05636778]
[1770051668738,1.05583241,2367.8,2366.6,1.05636778]
[1770051669375,1.05582168,2367.9,2366.6,1.05636778]
[1770051669664,1.05568755,2368.2,2366.8,0.02542588]
[1770051669832,0.52792676,2368.1,2366.8,0.02542588]
[1770051670032,0.52792676,2368.1,2366.6,11.13866269]
[1770051670233,0.52792676,2368.1,2366.6,1.05636778]
[1770051670234,12.65713454,2368.0,2366.6,1.05636778]
[1770051670532,0.52792676,2368.1,2366.6,1.05636778]
[1770051670729,1.05574324,2368.0,2366.6,1.05636778]
[1770051670945,0.5806643,2367.9,2366.7,0.61932648]
[1770051671346,4.75089973,2368.1,2366.7,12.67092889]
[1770051671347,1.58362724,2368.1,2366.7,12.67092889]
[1770051672386,0.0011,2368.3,2367.2,12.05160241]
[1770051672550,0.0011,2368.3,2367.1,0.02542588]
[1770051672551,0.0011,2368.3,2367.3,12.93760241]
[1770051672752,0.0011,2368.3,2367.4,1.05601081]
[1770051672975,0.0011,2368.3,2367.3,5.11004325]
[1770051673173,0.0011,2368.3,2367.3,1.94201649]
[1770051673388,0.0011,2368.3,2367.3,1.50262382]
[1770051673684,0.0011,2368.3,2367.3,1.94204908]
[1770051673885,12.65823454,2368.3,2367.3,0.886]
[1770051674292,12.65823454,2368.3,2367.3,1.94204663]
[1770051674587,12.65823454,2368.3,2367.3,0.886]
[1770051674800,1.05569866,2368.1,2367.3,0.886]
[1770051675364,1.05569866,2368.1,2367.3,1.94203055]
[1770051675566,1.05569866,2368.1,2367.3,0.886]
[1770051676578,1.26582345,2368.2,2367.3,1.94204107]
[1770051676893,0.0011,2368.3,2367.3,1.94204107]
[1770051677395,0.0011,2367.9,2367.3,1.94204107]
[1770051677701,1.0554758,2368.6,2367.3,1.94204107]
[1770051677898,1.05534214,2368.9,2367.3,13.99364348]
[1770051678058,0.0011,2368.1,2367.3,13.99364348]
[1770051678259,0.0011,2368.1,2367.4,1.82178652]
[1770051678699,0.0011,2368.1,2367.3,1.94204107]
[1770051679070,0.0011,2368.1,2366.9,0.001]
[1770051679274,0.0011,2368.1,2367.3,1.05604534]
[1770051679675,0.0011,2368.1,2367.3,13.10764775]
[1770051680196,0.0011,2368.1,2367.3,1.05604534]
[1770051680398,0.0011,2368.1,2367.4,0.53058419]
[1770051680703,0.0011,2368.1,2367.5,0.886]
[1770051681265,0.0011,2368.1,2367.6,1.0559216]
[1770051681463,0.21432681,2370.2,2367.6,1.0559216]
[1770051681464,0.8871,2369.1,2367.6,12.97507863]
[1770051681777,0.8871,2369.1,2367.9,9.28992367]
[1770051681778,1.0563667,2369.1,2367.9,9.28992367]
[1770051681959,0.52883255,2369.1,2368.0,0.92899237]
[1770051682163,0.52883255,2369.1,2367.9,0.02542588]
[1770051682464,1.05635833,2369.1,2367.6,12.97507863]
[1770051683283,1.05635833,2369.1,2367.6,12.94965275]
[1770051683284,0.0011,2369.1,2367.6,12.94965275]
[1770051683485,0.0011,2369.1,2367.6,12.97507863]
[1770051683698,0.0011,2369.1,2367.6,12.94965275]
[1770051683894,0.0011,2369.1,2367.6,12.97507863]
[1770051684199,1.79601339,2369.1,2367.7,2.7349287]
[1770051684397,1.79601339,2369.1,2367.7,14.62865985]
[1770051684596,0.0011,2369.1,2367.9,0.02542588]
[1770051684770,0.0011,2369.1,2367.7,14.62865985]
[1770051685172,0.0011,2369.1,2367.8,1.05583241]
[1770051685686,12.67181319,2369.0,2367.8,1.05583241]
[1770051687067,13.55781319,2369.0,2367.4,0.53058419]
[1770051687273,13.72724443,2368.7,2367.1,4.2245478]
[1770051687680,13.72724443,2368.7,2367.0,1.94216289]
[1770051688003,5.57761631,2368.9,2367.3,11.91915703]
[1770051688004,2.41126823,2368.9,2367.3,11.91915703]
[1770051688179,1.05537691,2368.9,2367.6,0.02542588]
[1770051688381,1.05537691,2368.9,2367.7,0.885]
[1770051688899,0.0011,2369.1,2367.7,0.885]
[1770051688900,1.05638078,2369.1,2367.7,0.885]
[1770051689402,1.05638078,2369.1,2367.8,1.05583241]
[1770051689967,0.0011,2369.1,2368.1,0.02542588]
[1770051690206,0.0011,2369.1,2367.9,9.28992367]
[1770051690503,0.0011,2369.1,2368.0,2.22394872]
[1770051691196,0.0011,2369.1,2368.2,0.02542588]
[1770051691395,1.05498586,2369.7,2368.3,12.77873115]
[1770051691798,13.51527054,2369.7,2368.3,0.885]
[1770051692377,0.89139882,2369.6,2368.3,0.885]
[1770051692709,13.51527054,2369.7,2368.3,0.885]
[1770051692710,1.44066694,2369.5,2368.3,0.885]
[1770051693312,1.05511943,2369.4,2368.3,1.94060505]
[1770051694930,1.05485232,2370.0,2368.8,0.02542588]
[1770051695220,4.2204521,2370.1,2368.5,0.02542588]
[1770051695221,1.05593966,2370.1,2368.7,11.89373115]
[1770051695383,1.05593966,2370.1,2368.5,0.02542588]
[1770051695384,12.67181319,2369.9,2368.8,1.18937312]
[1770051695592,13.56364288,2369.8,2368.6,1.05546723]
[1770051695790,12.67181319,2369.8,2368.6,1.05546723]
[1770051696081,12.67181319,2369.8,2368.6,1.05544313]
[1770051696321,12.67181319,2369.8,2368.7,1.05542869]
[1770051696614,1.26718132,2369.7,2368.7,0.52774796]
[1770051696815,1.26718132,2369.7,2368.4,1.94053008]
[1770051697021,12.67181319,2369.3,2368.0,0.001]
[1770051697213,14.66821021,2369.6,2368.2,1.05563179]
[1770051697398,3.05714856,2369.5,2368.0,0.001]
[1770051697601,0.89067663,2369.4,2368.0,0.001]
[1770051697800,0.89067663,2369.3,2368.0,2.24803202]
[1770051698134,5.71924558,2369.8,2368.0,2.24803202]
[1770051698135,1e-08,2371.1,2369.4,12.37884203]
[1770051698327,13.72582052,2371.9,2370.5,0.22064529]
[1770051698625,0.22073608,2373.1,2371.6,0.02542588]
[1770051698626,12.67181319,2372.9,2371.6,0.02542588]
[1770051698933,0.22073608,2373.1,2372.0,0.02542588]
[1770051699098,13.72493881,2373.9,2372.3,9.28992367]
[1770051699300,9.26449779,2375.2,2372.3,9.28992367]
[1770051699301,12.67181319,2374.6,2373.0,1.05351875]
[1770051699501,0.33558668,2375.3,2373.1,10.14949779]
[1770051699502,12.67181319,2374.9,2373.1,10.14949779]
[1770051699736,12.67181319,2374.7,2373.2,0.885]
[1770051700021,1.46718132,2374.8,2373.4,9.26449779]
[1770051700188,12.67181319,2375.1,2373.0,9.26449779]
[1770051700615,4.21024365,2375.2,2373.1,0.885]
[1770051700616,12.67181319,2374.9,2373.1,0.885]
[1770051700924,12.67181319,2374.7,2373.0,0.885]
[1770051701141,12.77421319,2374.5,2372.9,0.885]
[1770051701316,1.05289757,2374.4,2373.2,1.05342996]
[1770051701515,16.88324545,2374.5,2373.3,0.02542588]
[1770051701516,1.7936143,2374.3,2373.3,0.02542588]
[1770051701714,13.72444476,2375.0,2373.6,0.02542588]
[1770051701921,13.72444476,2375.0,2373.7,0.885]
[1770051702162,12.67181319,2375.0,2373.7,0.885]
[1770051703407,1.05261578,2375.1,2373.8,1.0531637]
[1770051703608,0.33558668,2375.3,2373.8,1.0531637]
[1770051703609,13.72435613,2375.2,2373.8,1.0531637]
[1770051703839,13.72435613,2375.2,2373.0,1.0535126]
[1770051703840,12.67181319,2374.8,2373.0,1.0535126]
[1770051704027,12.67181319,2374.8,2373.3,1.05337995]
[1770051704224,12.67181319,2374.8,2373.5,1.05329112]
[1770051704413,1.40599428,2375.1,2373.7,1.05319419]
[1770051704749,1.19473152,2375.1,2373.8,0.884]
[1770051704916,1.19473152,2375.1,2373.9,0.02542588]
[1770051705112,0.33558668,2375.3,2374.0,0.02542588]
[1770051705327,1.38809144,2375.3,2374.1,1.05303062]
[1770051705531,1.38809144,2375.3,2373.1,4.23919973]
[1770051705532,14.05990463,2375.3,2372.8,9.26449779]
[1770051705707,14.05990463,2375.3,2373.3,5.09742779]
[1770051705908,14.05990463,2375.3,2374.0,1.05305072]
[1770051705909,1.38809144,2375.3,2374.0,1.05305072]
[1770051706121,1.38810039,2375.3,2374.0,2.00337545]
[1770051706322,0.33558668,2375.3,2374.2,0.02542588]
[1770051706555,0.33558668,2375.3,2374.0,2.00337545]
[1770051706756,0.33558668,2375.3,2374.0,1.05305072]
[1770051706757,14.05989857,2375.3,2374.0,1.05305072]
[1770051707325,14.05989857,2375.3,2373.8,4.21229991]
[1770051707326,14.05990778,2375.3,2373.8,4.21229991]
[1770051707524,14.05990778,2375.3,2373.9,1.54139614]
[1770051707525,1.40599078,2375.2,2373.9,1.54139614]
[1770051707756,1.40599078,2375.2,2373.8,4.21229991]
[1770051708050,1.40599078,2375.2,2374.0,0.02542588]
[1770051708220,0.33558668,2375.3,2374.3,0.02542588]
[1770051708424,0.1144712,2375.9,2375.0,9.26449779]
[1770051708639,13.65811776,2377.0,2375.1,0.90942588]
[1770051708839,13.65811776,2377.0,2375.2,0.884]
[1770051709435,12.60637187,2376.4,2374.1,20.21019838]
[1770051709668,12.60637187,2376.2,2374.4,1.05287039]
[1770051709833,12.60637187,2376.2,2374.2,2.93044572]
[1770051710168,12.60637187,2376.2,2374.6,1.05278812]
[1770051710369,1.28399422,2376.3,2374.2,2.02101984]
[1770051710370,11.97709784,2376.0,2374.2,2.02101984]
[1770051710876,11.97709784,2376.0,2374.2,4.21190416]
[1770051711174,1.28399422,2376.3,2375.2,1.07795383]
[1770051711335,1.05201144,2376.4,2375.2,1.05252795]
[1770051711535,13.02910928,2376.4,2375.2,1.05252854]
[1770051711735,13.02910928,2376.4,2375.2,1.05252138]
[1770051711973,13.02910928,2376.4,2375.1,1.93655898]
[1770051712132,13.02910928,2376.4,2375.1,0.884]
[1770051712332,13.78921335,2376.3,2375.2,1.05254025]
[1770051712839,13.78921335,2376.3,2375.2,1.05253819]
[1770051713040,13.78921335,2376.3,2375.2,1.05253723]
[1770051713448,13.02919783,2376.2,2375.1,0.884]
[1770051713666,13.02919783,2376.2,2374.5,1.05285323]
[1770051713875,1.90497133,2376.1,2374.6,0.52642916]
[1770051714169,1.90497133,2376.1,2374.7,0.02542588]
[1770051714354,1.90497133,2376.1,2374.6,0.52642916]
[1770051714561,13.88206917,2376.1,2374.5,1.05285323]
[1770051714774,13.88206917,2376.1,2374.4,1.05288183]
[1770051715063,11.97709784,2375.9,2374.4,1.05288183]
[1770051715235,0.883,2376.0,2374.4,1.05288183]
[1770051715436,1.05223283,2375.9,2374.4,1.05288183]
[1770051715748,12.59151426,2375.8,2374.4,1.05288183]
[1770051716861,12.59151426,2375.8,2374.3,0.883]
[1770051717179,12.59151426,2375.8,2374.4,1.05288635]
[1770051717386,1.05232142,2375.7,2374.6,0.001]
[1770051718177,11.97709784,2375.6,2374.6,0.001]
[1770051718383,13.28003977,2375.5,2374.6,0.001]
[1770051719462,2.35535215,2375.5,2374.6,0.001]
[1770051719800,1.05241022,2375.5,2374.6,0.001]
[1770051720086,13.02950806,2375.5,2374.6,0.001]
[1770051721789,13.02950806,2375.5,2374.1,1.05300441]
[1770051721991,13.02950806,2375.5,2374.2,1.05297612]
[1770051722501,13.02950806,2375.5,2374.2,1.05296452]
[1770051722502,11.97709784,2375.1,2374.2,1.05296452]
[1770051722666,1.19770978,2375.0,2374.2,1.05296452]
[1770051722861,0.883,2375.4,2374.2,1.05296452]
[1770051723760,1.93548377,2375.4,2374.1,0.02542588]
[1770051723992,1.93548377,2375.4,2373.8,4.21194507]
[1770051724298,13.91258161,2375.4,2373.8,4.21194507]
[1770051725107,0.3359703,2375.3,2373.5,1.05325875]
[1770051725412,11.97709784,2375.0,2373.5,1.05329544]
[1770051725697,11.97709784,2374.7,2373.0,4.21405128]
[1770051725862,1.05272022,2374.8,2373.2,0.02542588]
[1770051726064,1.05270419,2374.9,2373.5,0.02542588]
[1770051726262,0.61463044,2374.8,2373.1,10.94670059]
[1770051726458,0.61463044,2374.8,2373.0,4.21405128]
[1770051726459,11.97709784,2374.8,2373.0,4.21405128]
[1770051726677,4.21037226,2375.1,2373.4,0.02542588]
[1770051726678,1.0526286,2375.1,2373.4,0.02542588]
[1770051726896,1.93557729,2375.2,2373.7,0.02542588]
[1770051727264,1.93557729,2375.2,2373.5,1.10453652]
[1770051727675,1.93557729,2375.2,2373.6,1.05325244]
[1770051727897,1.87709621,2375.1,2373.7,0.63707987]
[1770051728097,1.87709621,2375.1,2373.8,1.10453652]
[1770051728394,1.87709621,2375.1,2373.9,1.10453652]
[1770051728594,1.87709621,2375.1,2374.0,1.1299624]
[1770051729105,0.883,2375.2,2374.2,1.10453652]
[1770051729269,1.93554999,2375.2,2374.1,1.10453652]
[1770051729914,0.883,2375.2,2374.2,1.05298626]
[1770051730206,1.93554524,2375.2,2374.2,1.05298626]
[1770051730491,1.70064907,2375.3,2374.2,1.05298626]
[1770051730693,0.59105503,2375.2,2374.2,2.2619324]
[1770051730993,0.0011,2375.0,2374.2,2.2619324]
[1770051731219,0.0011,2375.0,2374.2,3.36646892]
[1770051731923,0.0011,2375.0,2374.3,1.10453652]
[1770051732227,0.61441642,2375.8,2374.7,1.1299624]
[1770051732381,1.05325262,2376.1,2375.0,0.02542588]
[1770051732581,1.05325262,2376.1,2375.0,1.10453652]
[1770051733016,1.05325262,2376.1,2374.9,1.10453652]
[1770051733418,1.05325262,2376.1,2375.3,0.02542588]
[1770051733419,0.0011,2376.1,2375.3,0.02542588]
[1770051733714,0.0011,2376.1,2375.3,1.10453652]
[1770051733930,16.1844195,2376.9,2375.3,1.10453652]
[1770051733931,1.4791085,2377.5,2375.6,10.94450059]
[1770051734082,5.20532732,2378.7,2375.4,2.18241672]
[1770051734083,11.97709784,2378.7,2377.0,10.30477035]
[1770051734283,3.21664045,2379.2,2376.8,1.10453652]
[1770051734284,11.97709784,2378.3,2376.8,1.10453652]
[1770051734532,11.97709784,2378.3,2376.5,1.10453652]
[1770051734686,2.0,2378.2,2376.4,1.10453652]
[1770051734886,11.97709784,2378.0,2376.3,0.883]
[1770051735100,11.97709784,2378.0,2376.3,0.88]
[1770051735582,1.39770978,2378.1,2377.1,0.02542588]
[1770051735782,16.18041196,2379.1,2377.4,0.02542588]
[1770051736140,1.0507292,2379.3,2377.5,1.05152471]
[1770051736445,11.97709784,2379.0,2377.4,1.93456637]
[1770051737242,11.97709784,2379.0,2377.4,1.05156802]
[1770051737394,11.97709784,2379.0,2376.8,1.10453652]
[1770051737598,11.97709784,2378.8,2377.2,1.05165576]
[1770051737791,11.97709784,2378.8,2376.9,4.20710289]